fUST/lending_fUST_20250101
["ID","MTS","AMOUNT","RATE_DAILY","PERIOD"]
[347311991,1735680640743,-542.37,0.00019452,3]
[347311992,1735680640753,-500.0,0.00019452,3]
[347311993,1735680640762,-500.0,0.00019452,3]
[347311994,1735680640771,-500.0,0.00019452,3]
[347311995,1735680640780,-533.32,0.00019452,3]
[347311996,1735680640790,-500.0,0.00019452,3]
[347311997,1735680640799,-500.0,0.00019452,3]
[347311998,1735680640809,-1947.97,0.00019452,3]
[347311999,1735680640818,-610.33,0.00019452,3]
[347312000,1735680640827,-518.35,0.00019452,3]
[347312001,1735680640836,-532.5,0.00019452,3]
[347312002,1735680640845,-576.27513139,0.00019452,3]
[347312003,1735680640854,-500.0,0.00019452,3]
[347312004,1735680640863,-718.87,0.00019452,3]
[347312005,1735680640872,-500.0,0.00019452,3]
[347312006,1735680640881,-500.0,0.00019452,3]
[347312007,1735680640890,-1006.36,0.00019452,3]
[347312008,1735680640899,-500.0,0.00019452,3]
[347312009,1735680640909,-534.4,0.00019452,3]
[347312010,1735680640918,-500.0,0.00019452,3]
[347312011,1735680640927,-1222.95,0.00019452,3]
[347312012,1735680640937,-681.28,0.00019452,3]
[347312013,1735680640948,-4436.1,0.00019452,3]
[347312014,1735680640957,-648.59,0.00019452,3]
[347312015,1735680640967,-1293.77,0.00019452,3]
[347312016,1735680640976,-28206.33,0.00019452,3]
[347312017,1735680640985,-1046.71,0.00019452,3]
[347312018,1735680640994,-1817.89,0.00019452,3]
[347312019,1735680641004,-3907.44,0.00019452,3]
[347312020,1735680641013,-627.14,0.00019452,3]
[347312021,1735680641022,-500.0,0.00019452,3]
[347312022,1735680641031,-718.34,0.00019452,3]
[347312023,1735680641040,-535.93,0.00019452,3]
[347312024,1735680641049,-500.0,0.00019452,3]
[347312025,1735680641058,-278.95983926,0.00019452,3]
[347312026,1735680641067,-500.0,0.00019452,3]
[347312027,1735680641076,-500.0,0.00019452,3]
[347312028,1735680641085,-993.24,0.00019452,3]
[347312029,1735680641094,-887.13,0.00019452,3]
[347312030,1735680641103,-500.0,0.00019452,3]
[347312031,1735680641112,-719.79,0.00019452,3]
[347312032,1735680641122,-6914.06,0.00019452,3]
[347312033,1735680641131,-500.0,0.00019452,3]
[347312034,1735680641141,-551.23,0.00019452,3]
[347312035,1735680641150,-500.0,0.00019452,3]
[347312036,1735680641159,-508.5045614,0.00019452,3]
[347312037,1735680641169,-500.0,0.00019452,3]
[347312038,1735680641179,-717.46,0.00019452,3]
[347312039,1735680641187,-500.0,0.00019452,3]
[347312040,1735680641197,-500.0,0.00019452,3]
[347312041,1735680641206,-513.26060886,0.00019452,3]
[347312042,1735680641215,-500.0,0.00019452,3]
[347312043,1735680641224,-622.78,0.00019452,3]
[347312044,1735680641234,-500.0,0.00019452,3]
[347312045,1735680641243,-928.4,0.00019452,3]
[347312046,1735680641252,-3018.63,0.00019452,3]
[347312047,1735680641262,-1010.44,0.00019452,3]
[347312048,1735680641271,-500.0,0.00019452,3]
[347312049,1735680641280,-1187.0,0.00019452,3]
[347312050,1735680641290,-2468.48,0.00019452,3]
[347312051,1735680641299,-690.04,0.00019452,3]
[347312052,1735680641312,-500.0,0.00019452,3]
[347312053,1735680641321,-682.36,0.00019452,3]
[347312054,1735680641330,-2172.72,0.00019452,3]
[347312055,1735680641339,-500.0,0.00019452,3]
[347312056,1735680641349,-1571.82,0.00019452,3]
[347312057,1735680641360,-619.95,0.00019452,3]
[347312058,1735680641369,-1559.11,0.00019452,3]
[347312059,1735680641379,-500.0,0.00019452,3]
[347312060,1735680641389,-625.0,0.00019452,3]
[347312061,1735680641399,-500.0,0.00019452,3]
[347312062,1735680641409,-500.0,0.00019452,3]
[347312063,1735680641418,-1172.68,0.00019452,3]
[347312064,1735680641427,-1169.04,0.00019452,3]
[347312065,1735680641436,-500.0,0.00019452,3]
[347312066,1735680641446,-500.0,0.00019452,3]
[347312067,1735680641455,-500.0,0.00019452,3]
[347312068,1735680641464,-629.94,0.00019452,3]
[347312069,1735680641473,-500.0,0.00019452,3]
[347312070,1735680641482,-500.0,0.00019452,3]
[347312071,1735680641491,-500.0,0.00019452,3]
[347312072,1735680641501,-547.62,0.00019452,3]
[347312073,1735680641510,-500.0,0.00019473,2]
[347312074,1735680641519,-500.0,0.00019725,3]
[347312075,1735680641528,-151.0,0.00019726,2]
[347312076,1735680641537,-151.0,0.00019726,2]
[347312077,1735680641546,-151.0,0.00019726,2]
[347312078,1735680641555,-500.0,0.00019726,3]
[347312079,1735680641565,-500.0,0.00019726,3]
[347312080,1735680641574,-500.0,0.00019726,3]
[347312081,1735680641583,-500.0,0.00019726,3]
[347312082,1735680641593,-500.0,0.00019726,3]
[347312083,1735680641602,-500.0,0.00019726,3]
[347312084,1735680641611,-500.0,0.00019726,3]
[347312085,1735680641620,-569.83,0.00019726,3]
[347312086,1735680641630,-500.0,0.00019726,3]
[347312087,1735680641639,-500.0,0.00019726,3]
[347312088,1735680641648,-500.0,0.00019726,3]
[347312089,1735680641657,-573.73522595,0.00019726,3]
[347312090,1735680641667,-3163.98,0.00019726,3]
[347312091,1735680641676,-500.0,0.00019726,3]
[347312092,1735680641686,-500.0,0.00019726,3]
[347312093,1735680641695,-500.0,0.00019726,3]
[347312094,1735680641705,-500.0,0.00019726,3]
[347312095,1735680641714,-546.66,0.00019726,3]
[347312096,1735680641723,-500.0,0.00019726,3]
[347312097,1735680641732,-500.0,0.00019726,2]
[347312098,1735680641741,-545.24773415,0.00019726,3]
[347312099,1735680641751,-500.0,0.00019726,3]
[347312100,1735680641760,-500.0,0.00019726,3]
[347312101,1735680641769,-674.08,0.00019726,3]
[347312102,1735680641778,-500.0,0.00019726,3]
[347312103,1735680641787,-248.66150273,0.00019726,3]
[347312104,1735680641797,-500.0,0.00019726,3]
[347312105,1735680641806,-500.0,0.00019726,3]
[347312106,1735680641815,-500.0,0.00019726,3]
[347312107,1735680641825,-500.0,0.00019726,3]
[347312108,1735680641835,-500.04,0.00019726,3]
[347312109,1735680641844,-500.0,0.00019726,3]
[347312110,1735680641852,-604.25,0.00019726,3]
[347312111,1735680641861,-500.0,0.00019726,3]
[347312112,1735680641870,-726.42,0.00019726,3]
[347312113,1735680641879,-1032.24,0.00019726,3]
[347312114,1735680641888,-500.0,0.00019726,3]
[347312115,1735680641898,-707.36,0.00019726,3]
[347312116,1735680641907,-500.0,0.00019726,3]
[347312117,1735680641916,-500.0,0.00019726,3]
[347312118,1735680641925,-500.0,0.00019726,3]
[347312119,1735680641934,-5847.98,0.00019726,3]
[347312120,1735680641943,-500.0,0.00019726,3]
[347312121,1735680641953,-500.0,0.00019726,3]
[347312122,1735680641962,-500.0,0.00019726,3]
[347312123,1735680641971,-515.08,0.00019726,3]
[347312124,1735680641980,-500.0,0.00019726,3]
[347312125,1735680641989,-500.0,0.00019726,3]
[347312126,1735680641999,-1005.61,0.00019726,3]
[347312127,1735680642008,-542.37,0.00019726,3]
[347312128,1735680642017,-500.0,0.00019726,3]
[347312129,1735680642026,-500.0,0.00019726,3]
[347312130,1735680642035,-533.32,0.00019726,3]
[347312131,1735680642045,-500.0,0.00019726,3]
[347312132,1735680642054,-500.0,0.00019726,3]
[347312133,1735680642063,-1947.97,0.00019726,3]
[347312134,1735680642072,-610.33,0.00019726,3]
[347312135,1735680642081,-518.35,0.00019726,3]
[347312136,1735680642091,-532.5,0.00019726,3]
[347312137,1735680642100,-500.0,0.00019726,3]
[347312138,1735680642109,-718.87,0.00019726,3]
[347312139,1735680642118,-500.0,0.00019726,3]
[347312140,1735680642129,-1006.36,0.00019726,3]
[347312141,1735680642138,-534.4,0.00019726,3]
[347312142,1735680642147,-500.0,0.00019726,3]
[347312143,1735680642156,-1222.95,0.00019726,3]
[347312144,1735680642165,-681.28,0.00019726,3]
[347312145,1735680642174,-4436.1,0.00019726,3]
[347312146,1735680642183,-648.59,0.00019726,3]
[347312147,1735680642193,-1293.77,0.00019726,3]
[347312148,1735680642202,-28206.33,0.00019726,3]
[347312149,1735680642211,-1046.71,0.00019726,3]
[347312150,1735680642220,-1817.89,0.00019726,3]
[347312151,1735680642230,-3907.44,0.00019726,3]
[347312152,1735680642239,-627.14,0.00019726,3]
[347312153,1735680642249,-500.0,0.00019726,3]
[347312154,1735680642258,-718.34,0.00019726,3]
[347312155,1735680642267,-535.93,0.00019726,3]
[347312156,1735680642276,-500.0,0.00019726,3]
[347312157,1735680642286,-500.0,0.00019726,3]
[347312158,1735680642295,-500.0,0.00019726,3]
[347312159,1735680642304,-993.24,0.00019726,3]
[347312160,1735680642314,-887.13,0.00019726,3]
[347312161,1735680642324,-500.0,0.00019726,3]
[347312162,1735680642334,-719.79,0.00019726,3]
[347312163,1735680642344,-6914.06,0.00019726,3]
[347312164,1735680642353,-500.0,0.00019726,3]
[347312165,1735680642363,-551.23,0.00019726,3]
[347312166,1735680642372,-500.0,0.00019726,3]
[347312167,1735680642382,-500.0,0.00019726,3]
[347312168,1735680642393,-717.46,0.00019726,3]
[347312169,1735680642404,-500.0,0.00019726,3]
[347312170,1735680642413,-500.0,0.00019726,3]
[347312171,1735680642423,-500.0,0.00019726,3]
[347312172,1735680642432,-622.78,0.00019726,3]
[347312173,1735680642441,-500.0,0.00019726,3]
[347312174,1735680642451,-928.4,0.00019726,3]
[347312175,1735680642460,-3018.63,0.00019726,3]
[347312176,1735680642470,-1010.44,0.00019726,3]
[347312177,1735680642479,-500.0,0.00019726,3]
[347312178,1735680642489,-1187.0,0.00019726,3]
[347312179,1735680642498,-2468.48,0.00019726,3]
[347312180,1735680642507,-690.04,0.00019726,3]
[347312181,1735680642516,-500.0,0.00019726,3]
[347312182,1735680642527,-682.36,0.00019726,3]
[347312183,1735680642537,-2172.72,0.00019726,3]
[347312184,1735680642547,-500.0,0.00019726,3]
[347312185,1735680642556,-1571.82,0.00019726,3]
[347312186,1735680642566,-619.95,0.00019726,3]
[347312187,1735680642576,-1559.11,0.00019726,3]
[347312188,1735680642585,-500.0,0.00019726,3]
[347312189,1735680642594,-625.0,0.00019726,3]
[347312190,1735680642603,-500.0,0.00019726,3]
[347312191,1735680642612,-1172.68,0.00019726,3]
[347312192,1735680642621,-1169.04,0.00019726,3]
[347312193,1735680642631,-500.0,0.00019726,3]
[347312194,1735680642639,-500.0,0.00019726,3]
[347312195,1735680642648,-629.94,0.00019726,3]
[347312196,1735680642659,-500.0,0.00019726,3]
[347312197,1735680642668,-500.0,0.00019726,3]
[347312198,1735680642679,-500.0,0.00019726,3]
[347312199,1735680642687,-151.0,0.00019873,2]
[347312200,1735680642697,-420.0,0.00019902,2]
[347312201,1735680642706,-151.0,0.00019999,2]
[347312202,1735680642715,-500.0,0.00019999,3]
[347312203,1735680642724,-151.0,0.0002,2]
[347312204,1735680642733,-151.0,0.0002,2]
[347312205,1735680642742,-500.0,0.0002,3]
[347312206,1735680642751,-500.0,0.0002,3]
[347312207,1735680642760,-500.0,0.0002,3]
[347312208,1735680642769,-500.0,0.0002,3]
[347312209,1735680642778,-500.0,0.0002,3]
[347312210,1735680642787,-500.0,0.0002,3]
[347312211,1735680642796,-500.0,0.0002,3]
[347312212,1735680642805,-569.83,0.0002,3]
[347312213,1735680642814,-500.0,0.0002,3]
[347312214,1735680642823,-500.0,0.0002,3]
[347312215,1735680642832,-500.0,0.0002,3]
[347312216,1735680642841,-3163.98,0.0002,3]
[347312217,1735680642850,-500.0,0.0002,3]
[347312218,1735680642862,-500.0,0.0002,3]
[347312220,1735680642872,-500.0,0.0002,3]
[347312222,1735680642881,-500.0,0.0002,3]
[347312223,1735680642890,-546.66,0.0002,3]
[347312224,1735680642900,-500.0,0.0002,3]
[347312225,1735680642911,-500.0,0.0002,2]
[347312226,1735680643013,-500.0,0.0002,3]
[347312227,1735680643034,-500.0,0.0002,3]
[347312228,1735680643043,-674.08,0.0002,3]
[347312229,1735680643053,-500.0,0.0002,3]
[347312230,1735680643063,-500.0,0.0002,3]
[347312231,1735680643072,-500.0,0.0002,3]
[347312232,1735680643081,-500.0,0.0002,3]
[347312233,1735680643090,-500.0,0.0002,3]
[347312235,1735680643099,-500.04,0.0002,3]
[347312236,1735680643108,-500.0,0.0002,3]
[347312237,1735680643117,-604.25,0.0002,3]
[347312238,1735680643127,-500.0,0.0002,3]
[347312239,1735680643136,-726.42,0.0002,3]
[347312240,1735680643146,-1032.24,0.0002,3]
[347312241,1735680643156,-500.0,0.0002,3]
[347312242,1735680643166,-707.36,0.0002,3]
[347312243,1735680643175,-500.0,0.0002,3]
[347312244,1735680643186,-500.0,0.0002,3]
[347312245,1735680643195,-500.0,0.0002,3]
[347312246,1735680643205,-5847.98,0.0002,3]
[347312247,1735680643214,-500.0,0.0002,3]
[347312248,1735680643223,-500.0,0.0002,3]
[347312249,1735680643232,-515.08,0.0002,3]
[347312250,1735680643241,-500.0,0.0002,3]
[347312251,1735680643251,-500.0,0.0002,3]
[347312252,1735680643261,-1005.61,0.0002,3]
[347312253,1735680643270,-542.37,0.0002,3]
[347312254,1735680643279,-500.0,0.0002,3]
[347312255,1735680643288,-500.0,0.0002,3]
[347312256,1735680643297,-533.32,0.0002,3]
[347312257,1735680643306,-500.0,0.0002,3]
[347312258,1735680643319,-500.0,0.0002,3]
[347312259,1735680643329,-1947.97,0.0002,3]
[347312260,1735680643338,-610.33,0.0002,3]
[347312261,1735680643348,-518.35,0.0002,3]
[347312262,1735680643358,-532.5,0.0002,3]
[347312263,1735680643367,-500.0,0.0002,3]
[347312264,1735680643376,-718.87,0.0002,3]
[347312265,1735680643386,-500.0,0.0002,3]
[347312266,1735680643396,-1006.36,0.0002,3]
[347312267,1735680643406,-534.4,0.0002,3]
[347312268,1735680643415,-1222.95,0.0002,3]
[347312269,1735680643424,-681.28,0.0002,3]
[347312270,1735680643434,-4436.1,0.0002,3]
[347312272,1735680643443,-648.59,0.0002,3]
[347312274,1735680643453,-1293.77,0.0002,3]
[347312276,1735680643462,-28206.33,0.0002,3]
[347312277,1735680643471,-1046.71,0.0002,3]
[347312278,1735680643482,-1817.89,0.0002,3]
[347312279,1735680643491,-3907.44,0.0002,3]
[347312280,1735680643501,-627.14,0.0002,3]
[347312281,1735680643510,-3000.13427659,0.0002,2]
[347312283,1735680643520,-500.0,0.0002,3]
[347312285,1735680643529,-718.34,0.0002,3]
[347312287,1735680643538,-535.93,0.0002,3]
[347312289,1735680643548,-500.0,0.0002,3]
[347312290,1735680643567,-500.0,0.0002,3]
[347312291,1735680643578,-500.0,0.0002,3]
[347312292,1735680643589,-993.24,0.0002,3]
[347312294,1735680643599,-5172.1913679,0.0002,2]
[347312295,1735680643609,-887.13,0.0002,3]
[347312296,1735680643619,-500.0,0.0002,3]
[347312298,1735680643629,-719.79,0.0002,3]
[347312300,1735680643639,-6914.06,0.0002,3]
[347312302,1735680643649,-500.0,0.0002,3]
[347312303,1735680643659,-551.23,0.0002,3]
[347312304,1735680643670,-500.0,0.0002,3]
[347312305,1735680643680,-500.0,0.0002,3]
[347312307,1735680643691,-717.46,0.0002,3]
[347312309,1735680643701,-500.0,0.0002,3]
[347312311,1735680643710,-437.85549526,0.0002,3]
[347312312,1735680643720,-500.0,0.0002,3]
[347312314,1735680643730,-622.78,0.0002,3]
[347312316,1735680643739,-500.0,0.0002,3]
[347312319,1735680643750,-928.4,0.0002,3]
[347312321,1735680643760,-3018.63,0.0002,3]
[347312323,1735680643770,-1010.44,0.0002,3]
[347312325,1735680643780,-500.0,0.0002,3]
[347312327,1735680643790,-1187.0,0.0002,3]
[347312329,1735680643801,-2468.48,0.0002,3]
[347312331,1735680643811,-690.04,0.0002,3]
[347312333,1735680643820,-500.0,0.0002,3]
[347312335,1735680643830,-682.36,0.0002,3]
[347312337,1735680643840,-2172.72,0.0002,3]
[347312339,1735680643850,-500.0,0.0002,3]
[347312341,1735680643859,-1571.82,0.0002,3]
[347312343,1735680643869,-619.95,0.0002,3]
[347312345,1735680643879,-1559.11,0.0002,3]
[347312347,1735680643889,-500.0,0.0002,3]
[347312349,1735680643899,-625.0,0.0002,3]
[347312351,1735680643909,-500.0,0.0002,3]
[347312353,1735680643919,-1172.68,0.0002,3]
[347312355,1735680643929,-1169.04,0.0002,3]
[347312357,1735680643938,-500.0,0.0002,3]
[347312360,1735680643948,-500.0,0.0002,3]
[347312362,1735680643958,-629.94,0.0002,3]
[347312364,1735680643967,-500.0,0.0002,3]
[347312366,1735680643976,-500.0,0.0002,3]
[347312368,1735680643986,-500.0,0.00020021,2]
[347312370,1735680643995,-153.0,0.00020092,2]
[347312372,1735680644004,-153.0,0.00020092,2]
[347312374,1735680644013,-153.0,0.00020092,2]
[347312376,1735680644023,-153.0,0.00020092,2]
[347312378,1735680644032,-153.0,0.00020092,2]
[347312380,1735680644041,-153.0,0.00020092,2]
[347312382,1735680644051,-408.28696901,0.00020272,2]
[347312384,1735680644060,-500.0,0.00020273,3]
[347312386,1735680644070,-500.0,0.00020273,3]
[347312388,1735680644079,-500.0,0.00020273,3]
[347312390,1735680644088,-500.0,0.00020273,3]
[347312392,1735680644098,-500.0,0.00020273,3]
[347312394,1735680644107,-500.0,0.00020273,3]
[347312396,1735680644116,-500.0,0.00020273,3]
[347312398,1735680644126,-569.83,0.00020273,3]
[347312400,1735680644135,-500.0,0.00020273,3]
[347312402,1735680644145,-500.0,0.00020273,3]
[347312404,1735680644155,-500.0,0.00020273,3]
[347312406,1735680644165,-3163.98,0.00020273,3]
[347312408,1735680644175,-500.0,0.00020273,3]
[347312410,1735680644184,-500.0,0.00020273,3]
[347312412,1735680644193,-500.0,0.00020273,3]
[347312414,1735680644202,-522.80534514,0.00020273,3]
[347312416,1735680644211,-546.66,0.00020273,3]
[347312418,1735680644220,-500.0,0.00020273,3]
[347312420,1735680644230,-500.0,0.00020273,2]
[347312422,1735680644239,-500.0,0.00020273,3]
[347312424,1735680644248,-500.0,0.00020273,3]
[347312426,1735680644258,-674.08,0.00020273,3]
[347312428,1735680644267,-500.0,0.00020273,3]
[347312430,1735680644277,-500.0,0.00020273,3]
[347312432,1735680644286,-500.0,0.00020273,3]
[347312434,1735680644296,-500.0,0.00020273,3]
[347312435,1735680644305,-500.0,0.00020273,3]
[347312436,1735680644316,-500.04,0.00020273,3]
[347312437,1735680644327,-604.25,0.00020273,3]
[347312438,1735680644336,-500.0,0.00020273,3]
[347312439,1735680644345,-500.0,0.00020273,3]
[347312440,1735680644355,-726.42,0.00020273,3]
[347312441,1735680644364,-1032.24,0.00020273,3]
[347312442,1735680644373,-500.0,0.00020273,3]
[347312443,1735680644383,-707.36,0.00020273,3]
[347312444,1735680644393,-500.0,0.00020273,3]
[347312445,1735680644403,-500.0,0.00020273,3]
[347312446,1735680644413,-500.0,0.00020273,3]
[347312447,1735680644423,-5847.98,0.00020273,3]
[347312448,1735680644432,-500.0,0.00020273,3]
[347312449,1735680644442,-500.0,0.00020273,3]
[347312450,1735680644451,-515.08,0.00020273,3]
[347312451,1735680644460,-500.0,0.00020273,3]
[347312452,1735680644470,-500.0,0.00020273,3]
[347312453,1735680644479,-1005.61,0.00020273,3]
[347312454,1735680644489,-542.37,0.00020273,3]
[347312455,1735680644498,-500.0,0.00020273,3]
[347312456,1735680644507,-500.0,0.00020273,3]
[347312457,1735680644517,-500.0,0.00020273,3]
[347312458,1735680644526,-533.32,0.00020273,3]
[347312459,1735680644535,-500.0,0.00020273,3]
[347312460,1735680644545,-500.0,0.00020273,3]
[347312461,1735680644554,-1947.97,0.00020273,3]
[347312462,1735680644563,-610.33,0.00020273,3]
[347312463,1735680644573,-518.35,0.00020273,3]
[347312464,1735680644582,-532.5,0.00020273,3]
[347312465,1735680644592,-500.0,0.00020273,3]
[347312466,1735680644601,-718.87,0.00020273,3]
[347312467,1735680644610,-500.0,0.00020273,3]
[347312468,1735680644620,-1006.36,0.00020273,3]
[347312469,1735680644630,-534.4,0.00020273,3]
[347312470,1735680644640,-1222.95,0.00020273,3]
[347312471,1735680644649,-681.28,0.00020273,3]
[347312472,1735680644659,-4436.1,0.00020273,3]
[347312473,1735680644668,-648.59,0.00020273,3]
[347312474,1735680644678,-1293.77,0.00020273,3]
[347312475,1735680644687,-28206.33,0.00020273,3]
[347312476,1735680644697,-1046.71,0.00020273,3]
[347312477,1735680644706,-1817.89,0.00020273,3]
[347312478,1735680644715,-3907.44,0.00020273,3]
[347312479,1735680644725,-627.14,0.00020273,3]
[347312480,1735680644734,-500.0,0.00020273,3]
[347312481,1735680644742,-718.34,0.00020273,3]
[347312482,1735680644752,-535.93,0.00020273,3]
[347312483,1735680644761,-500.0,0.00020273,3]
[347312484,1735680644770,-500.0,0.00020273,3]
[347312485,1735680644779,-500.0,0.00020273,3]
[347312486,1735680644788,-993.24,0.00020273,3]
[347312487,1735680644798,-887.13,0.00020273,3]
[347312488,1735680644807,-500.0,0.00020273,3]
[347312489,1735680644816,-719.79,0.00020273,3]
[347312490,1735680644825,-6914.06,0.00020273,3]
[347312491,1735680644835,-500.0,0.00020273,3]
[347312492,1735680644843,-551.23,0.00020273,3]
[347312493,1735680644853,-500.0,0.00020273,3]
[347312494,1735680644862,-500.0,0.00020273,3]
[347312495,1735680644871,-717.46,0.00020273,3]
[347312496,1735680644880,-500.0,0.00020273,3]
[347312497,1735680644890,-500.0,0.00020273,3]
[347312498,1735680644899,-622.78,0.00020273,3]
[347312499,1735680644909,-500.0,0.00020273,3]
[347312500,1735680644918,-928.4,0.00020273,3]
[347312501,1735680644928,-499.0,0.00020273,2]
[347312502,1735680644938,-3018.63,0.00020273,3]
[347312503,1735680644948,-1010.44,0.00020273,3]
[347312504,1735680644958,-500.0,0.00020273,3]
[347312505,1735680644968,-1187.0,0.00020273,3]
[347312506,1735680644978,-2468.48,0.00020273,3]
[347312507,1735680644987,-690.04,0.00020273,3]
[347312508,1735680644997,-500.0,0.00020273,3]
[347312509,1735680645007,-682.36,0.00020273,3]
[347312510,1735680645017,-2172.72,0.00020273,3]
[347312511,1735680645027,-500.0,0.00020273,3]
[347312512,1735680645036,-1571.82,0.00020273,3]
[347312513,1735680645046,-619.95,0.00020273,3]
[347312514,1735680645055,-1559.11,0.00020273,3]
[347312515,1735680645069,-500.0,0.00020273,3]
[347312516,1735680645079,-625.0,0.00020273,3]
[347312517,1735680645089,-500.0,0.00020273,3]
[347312518,1735680645098,-1172.68,0.00020273,3]
[347312519,1735680645108,-1169.04,0.00020273,3]
[347312520,1735680645118,-500.0,0.00020273,3]
[347312521,1735680645128,-500.0,0.00020273,3]
[347312522,1735680645137,-629.94,0.00020273,3]
[347312523,1735680645147,-500.0,0.00020273,3]
[347312524,1735680645158,-1999.03,0.000203,2]
[347312525,1735680645167,-150.0,0.00020333,2]
[347312526,1735680645177,-2093.0,0.00020333,2]
[347312527,1735680645186,-534.0,0.00020333,2]
[347312528,1735680645196,-2348.0,0.00020333,2]
[347312529,1735680645205,-394.0,0.00020333,2]
[347312530,1735680645215,-402.251,0.00020333,2]
[347312531,1735680645224,-400.0,0.00020447,2]
[347312532,1735680645233,-158.281406,0.00020521,2]
[347312533,1735680645243,-500.0,0.00020547,3]
[347312534,1735680645252,-500.0,0.00020547,3]
[347312535,1735680645262,-500.0,0.00020547,3]
[347312536,1735680645271,-500.0,0.00020547,3]
[347312537,1735680645281,-500.0,0.00020547,3]
[347312538,1735680645291,-500.0,0.00020547,3]
[347312539,1735680645300,-500.0,0.00020547,3]
[347312540,1735680645310,-569.83,0.00020547,3]
[347312541,1735680645324,-500.0,0.00020547,3]
[347312542,1735680645334,-500.0,0.00020547,3]
[347312543,1735680645343,-500.0,0.00020547,3]
[347312544,1735680645352,-3163.98,0.00020547,3]
[347312545,1735680645362,-500.0,0.00020547,3]
[347312546,1735680645372,-500.0,0.00020547,3]
[347312547,1735680645381,-500.0,0.00020547,3]
[347312548,1735680645392,-546.66,0.00020547,3]
[347312549,1735680645401,-500.0,0.00020547,3]
[347312550,1735680645412,-500.0,0.00020547,2]
[347312551,1735680645422,-500.0,0.00020547,3]
[347312552,1735680645431,-500.0,0.00020547,3]
[347312553,1735680645441,-674.08,0.00020547,3]
[347312554,1735680645450,-635.7667697,0.00020547,3]
[347312555,1735680645459,-500.0,0.00020547,3]
[347312556,1735680645469,-500.0,0.00020547,3]
[347312557,1735680645478,-500.0,0.00020547,3]
[347312558,1735680645487,-500.0,0.00020547,3]
[347312559,1735680645497,-500.04,0.00020547,3]
[347312560,1735680645507,-604.25,0.00020547,3]
[347312561,1735680645516,-500.0,0.00020547,3]
[347312562,1735680645525,-570.34583158,0.00020547,3]
[347312563,1735680645534,-726.42,0.00020547,3]
[347312564,1735680645543,-1032.24,0.00020547,3]
[347312565,1735680645553,-500.0,0.00020547,3]
[347312566,1735680645562,-707.36,0.00020547,3]
[347312567,1735680645572,-500.0,0.00020547,3]
[347312568,1735680645581,-500.0,0.00020547,3]
[347312569,1735680645590,-500.0,0.00020547,3]